fUSD/lending_fUSD_20240630
["ID","MTS","AMOUNT","RATE_DAILY","PERIOD"]
[330694889,1719713444154,-1293.07,0.00013808,3]
[330694891,1719713444163,-500.0,0.00013808,3]
[330694893,1719713444177,-500.0,0.00013808,3]
[330694896,1719713444188,-500.0,0.00013808,3]
[330694898,1719713444197,-639.14,0.00013808,3]
[330694900,1719713444207,-500.0,0.00013808,3]
[330694902,1719713444217,-500.0,0.00013808,3]
[330694904,1719713444226,-1425.9,0.00013808,3]
[330694906,1719713444236,-500.0,0.00013808,3]
[330694908,1719713444247,-500.0,0.00013808,3]
[330694909,1719713444258,-1125.49,0.00013808,3]
[330694910,1719713444276,-500.0,0.00013808,3]
[330694911,1719713444286,-500.0,0.00013808,3]
[330694912,1719713444296,-500.0,0.00013808,3]
[330694913,1719713444307,-500.0,0.00013808,3]
[330694914,1719713444317,-384.84796957,0.00013808,3]
[330694915,1719713444327,-500.0,0.00013808,3]
[330694916,1719713444338,-500.0,0.00013808,3]
[330694917,1719713444348,-500.0,0.00013808,3]
[330694918,1719713444358,-500.0,0.00013808,3]
[330694919,1719713444367,-608.32,0.00013808,3]
[330694920,1719713444510,-500.0,0.00013808,3]
[330694921,1719713444521,-762.03,0.00013808,3]
[330694922,1719713444530,-500.0,0.00013808,3]
[330694923,1719713444539,-990.15,0.00013808,3]
[330694924,1719713444549,-500.0,0.00013808,3]
[330694925,1719713444560,-988.16,0.00013808,3]
[330694926,1719713444569,-500.0,0.00013808,3]
[330694927,1719713444579,-267.71506282,0.00013808,3]
[330694928,1719713444588,-500.0,0.00013808,3]
[330694929,1719713444597,-500.0,0.00013808,3]
[330694930,1719713444607,-500.0,0.00013808,3]
[330694931,1719713444616,-689.74,0.00013808,3]
[330694932,1719713444625,-500.0,0.00013808,3]
[330694933,1719713444635,-500.0,0.00013808,3]
[330694934,1719713444645,-500.0,0.00013808,3]
[330694935,1719713444656,-500.0,0.00013808,3]
[330694936,1719713444665,-1035.58,0.00013808,3]
[330694937,1719713444675,-510.49419777,0.00013808,3]
[330694938,1719713444684,-500.0,0.00013808,3]
[330694939,1719713444694,-500.0,0.00013808,3]
[330694940,1719713444703,-1112.82,0.00013808,3]
[330694941,1719713444713,-1066.45,0.00013808,3]
[330694942,1719713444722,-782.64,0.00013808,3]
[330694943,1719713444731,-500.0,0.00013808,3]
[330694944,1719713444742,-500.0,0.00013808,3]
[330694945,1719713444751,-531.82711329,0.00013808,3]
[330694946,1719713444761,-697.5,0.00013808,3]
[330694947,1719713444770,-545.57,0.00013808,3]
[330694948,1719713444780,-500.0,0.00013808,3]
[330694949,1719713444789,-500.0,0.00013808,3]
[330694950,1719713444798,-500.0,0.00013808,3]
[330694951,1719713444807,-500.0,0.00013808,3]
[330694952,1719713444817,-517.39,0.00013808,3]
[330694953,1719713444826,-500.0,0.00013808,3]
[330694955,1719713444835,-500.0,0.00013808,3]
[330694956,1719713444844,-500.0,0.00013808,3]
[330694957,1719713444853,-500.0,0.00013808,3]
[330694958,1719713444863,-500.0,0.00013808,3]
[330694959,1719713444871,-513.6185921,0.00013808,3]
[330694960,1719713444882,-500.0,0.00013808,3]
[330694961,1719713444892,-500.0,0.00013808,3]
[330694962,1719713444901,-500.0,0.00013808,3]
[330694963,1719713444910,-500.0,0.00013808,3]
[330694964,1719713444919,-500.0,0.00013808,3]
[330694965,1719713444929,-500.0,0.00013808,3]
[330694966,1719713444938,-726.58,0.00013808,3]
[330694967,1719713444948,-500.0,0.00013808,3]
[330694968,1719713444957,-500.0,0.00013808,3]
[330694969,1719713444966,-500.0,0.00013808,3]
[330694970,1719713444975,-1425.2,0.00013808,3]
[330694971,1719713444984,-500.0,0.00013808,3]
[330694972,1719713444994,-500.0,0.00013808,3]
[330694973,1719713445003,-515.6612974,0.00013808,3]
[330694974,1719713445012,-500.0,0.00013808,3]
[330694975,1719713445021,-500.0,0.00013808,3]
[330694976,1719713445031,-500.0,0.00013808,3]
[330694977,1719713445040,-500.0,0.00013808,3]
[330694978,1719713445050,-500.0,0.00013808,3]
[330694979,1719713445059,-728.19,0.00013808,3]
[330694980,1719713445068,-500.0,0.00013808,3]
[330694981,1719713445078,-500.0,0.00013808,3]
[330694982,1719713445087,-500.0,0.00013808,3]
[330694983,1719713445096,-500.0,0.00013808,3]
[330694984,1719713445106,-500.0,0.00013808,3]
[330694985,1719713445115,-500.0,0.00013808,3]
[330694986,1719713445124,-500.0,0.00013808,3]
[330694987,1719713445134,-940.02,0.00013808,3]
[330694988,1719713445144,-500.0,0.00013808,3]
[330694989,1719713445153,-500.0,0.00013808,3]
[330694990,1719713445163,-500.0,0.00013808,3]
[330694991,1719713445172,-500.0,0.00013808,3]
[330694992,1719713445182,-500.0,0.00013808,3]
[330694993,1719713445191,-500.0,0.00013808,3]
[330694994,1719713445200,-500.0,0.00013808,3]
[330694995,1719713445210,-500.0,0.00013808,3]
[330694996,1719713445219,-500.0,0.00013808,3]
[330694997,1719713445228,-500.0,0.00013808,3]
[330694998,1719713445238,-500.0,0.00013808,3]
[330694999,1719713445247,-620.87,0.00013808,3]
[330695000,1719713445257,-662.79,0.00013808,3]
[330695001,1719713445270,-500.0,0.00013808,3]
[330695002,1719713445279,-500.0,0.00013808,3]
[330695003,1719713445289,-500.0,0.00013808,3]
[330695004,1719713445298,-500.0,0.00013808,3]
[330695005,1719713445308,-500.0,0.00013808,3]
[330695006,1719713445317,-500.0,0.00013808,3]
[330695007,1719713445327,-500.0,0.00013808,3]
[330695008,1719713445336,-500.0,0.00013808,3]
[330695009,1719713445347,-500.0,0.00013808,3]
[330695010,1719713445357,-500.0,0.00013808,3]
[330695011,1719713445367,-500.0,0.00013808,3]
[330695012,1719713445376,-500.0,0.00013808,3]
[330695013,1719713445385,-507.92658922,0.00013808,3]
[330695014,1719713445396,-500.0,0.00013808,3]
[330695015,1719713445405,-500.0,0.00013808,3]
[330695016,1719713445415,-500.0,0.00013808,3]
[330695017,1719713445424,-500.0,0.00013808,3]
[330695018,1719713445433,-500.0,0.00013808,3]
[330695019,1719713445442,-500.0,0.00013808,3]
[330695020,1719713445451,-529.63,0.00013808,3]
[330695021,1719713445460,-500.0,0.00013808,3]
[330695022,1719713445470,-500.0,0.00013808,3]
[330695023,1719713445478,-500.0,0.00013808,3]
[330695024,1719713445487,-500.0,0.00013808,3]
[330695025,1719713445496,-511.94705845,0.00013808,3]
[330695026,1719713445506,-500.0,0.00013808,3]
[330695027,1719713445515,-500.0,0.00013808,3]
[330695028,1719713445524,-500.0,0.00013808,3]
[330695029,1719713445534,-573.41,0.00013808,3]
[330695030,1719713445543,-500.0,0.00013808,2]
[330695031,1719713445552,-500.0,0.00013808,3]
[330695032,1719713445561,-500.0,0.00013808,3]
[330695033,1719713445570,-500.0,0.00013808,3]
[330695034,1719713445579,-500.0,0.00013808,3]
[330695035,1719713445588,-500.0,0.00013808,3]
[330695036,1719713445598,-500.0,0.00013808,3]
[330695037,1719713445607,-500.0,0.00013808,3]
[330695038,1719713445616,-500.0,0.00013808,3]
[330695039,1719713445625,-500.0,0.00013808,3]
[330695040,1719713445635,-500.0,0.00013808,3]
[330695041,1719713445645,-424.0056501,0.00013808,3]
[330695042,1719713445653,-1129.7,0.00013808,3]
[330695043,1719713445663,-500.0,0.00013808,3]
[330695044,1719713445672,-609.82,0.00013808,3]
[330695045,1719713445682,-500.0,0.00013808,3]
[330695046,1719713445691,-500.0,0.00013808,3]
[330695047,1719713445700,-500.0,0.00013808,3]
[330695048,1719713445709,-500.0,0.00013808,3]
[330695049,1719713445719,-500.0,0.00013808,3]
[330695050,1719713445728,-500.0,0.00013808,3]
[330695051,1719713445739,-500.0,0.00013808,3]
[330695052,1719713445748,-500.0,0.00013808,3]
[330695053,1719713445757,-500.0,0.00013808,3]
[330695054,1719713445766,-500.0,0.00013808,3]
[330695055,1719713445776,-500.0,0.00013808,3]
[330695056,1719713445785,-1089.73,0.00013808,3]
[330695057,1719713445794,-500.0,0.00013808,3]
[330695058,1719713445803,-999.53,0.00013808,3]
[330695059,1719713445812,-500.0,0.00013808,3]
[330695060,1719713445823,-355.11125059,0.00013808,3]
[330695061,1719713445832,-500.0,0.00013808,3]
[330695062,1719713445842,-500.0,0.00013808,3]
[330695063,1719713445851,-500.0,0.00013808,3]
[330695064,1719713445861,-500.0,0.00013808,3]
[330695065,1719713445871,-500.0,0.00013808,3]
[330695066,1719713445881,-500.0,0.00013808,3]
[330695067,1719713445890,-500.0,0.00013808,3]
[330695068,1719713445899,-500.0,0.00013808,3]
[330695069,1719713445909,-500.0,0.00013808,3]
[330695070,1719713445918,-500.0,0.00013808,3]
[330695071,1719713445927,-500.0,0.00013808,3]
[330695072,1719713445936,-500.0,0.00013808,3]
[330695073,1719713445946,-500.0,0.00013808,3]
[330695074,1719713445955,-500.0,0.00013808,3]
[330695075,1719713445964,-500.0,0.00013808,3]
[330695076,1719713445973,-485.31405931,0.00013808,3]
[330695077,1719713445982,-500.0,0.00013808,3]
[330695078,1719713445991,-500.0,0.00013808,3]
[330695080,1719713446000,-500.0,0.00013808,3]
[330695081,1719713446009,-1330.32,0.00013808,3]
[330695082,1719713446018,-500.0,0.00013808,3]
[330695083,1719713446027,-500.0,0.00013808,3]
[330695084,1719713446036,-500.0,0.00013808,3]
[330695085,1719713446045,-500.0,0.00013808,3]
[330695086,1719713446054,-168.7,0.00013808,3]
[330695087,1719713446064,-500.0,0.00013808,3]
[330695088,1719713446075,-500.0,0.00013808,3]
[330695089,1719713446085,-500.0,0.00013808,3]
[330695090,1719713446094,-500.0,0.00013808,3]
[330695091,1719713446103,-500.0,0.00013808,3]
[330695092,1719713446113,-500.0,0.00013808,3]
[330695093,1719713446122,-500.0,0.00013808,3]
[330695094,1719713446132,-817.7,0.00013808,3]
[330695095,1719713446143,-500.0,0.00013808,3]
[330695096,1719713446153,-500.0,0.00013808,3]
[330695097,1719713446163,-500.0,0.00013808,3]
[330695098,1719713446173,-500.0,0.00013808,3]
[330695099,1719713446183,-500.0,0.00013808,3]
[330695100,1719713446192,-500.0,0.00013808,3]
[330695101,1719713446201,-570.09,0.00013808,3]
[330695102,1719713446210,-500.0,0.00013808,3]
[330695103,1719713446219,-500.0,0.00013808,3]
[330695104,1719713446229,-500.0,0.00013808,3]
[330695105,1719713446238,-500.0,0.00013808,3]
[330695106,1719713446248,-500.0,0.00013808,3]
[330695107,1719713446258,-500.0,0.00013808,3]
[330695109,1719713446271,-500.0,0.00013808,3]
[330695110,1719713446280,-270.18258774,0.00013808,3]
[330695111,1719713446290,-500.0,0.00013808,3]
[330695112,1719713446300,-504.38883564,0.00013808,3]
[330695113,1719713446311,-500.0,0.00013808,3]
[330695114,1719713446320,-500.0,0.00013808,3]
[330695115,1719713446329,-500.0,0.00013808,3]
[330695116,1719713446342,-500.0,0.00013808,3]
[330695117,1719713446351,-500.0,0.00013808,3]
[330695118,1719713446361,-500.0,0.00013808,3]
[330695119,1719713446370,-500.0,0.00013808,3]
[330695120,1719713446379,-500.0,0.00013808,3]
[330695121,1719713446388,-500.0,0.00013808,3]
[330695122,1719713446399,-500.0,0.00013808,3]
[330695123,1719713446408,-1126.83,0.00013808,3]
[330695124,1719713446417,-500.0,0.00013808,3]
[330695125,1719713446427,-796.64,0.00013808,3]
[330695126,1719713446436,-500.0,0.00013808,3]
[330695127,1719713446445,-500.0,0.00013808,3]
[330695128,1719713446454,-236.32914573,0.00013808,3]
[330695129,1719713446464,-723.39,0.00013808,3]
[330695130,1719713446473,-500.0,0.00013808,3]
[330695131,1719713446482,-500.0,0.00013808,3]
[330695132,1719713446491,-500.0,0.00013808,3]
[330695133,1719713446501,-500.0,0.00013808,3]
[330695134,1719713446510,-500.0,0.00013808,3]
[330695135,1719713446519,-500.0,0.00013808,3]
[330695136,1719713446529,-500.0,0.00013808,3]
[330695137,1719713446538,-1491.18,0.00013808,3]
[330695138,1719713446548,-500.0,0.00013808,3]
[330695139,1719713446557,-500.0,0.00013808,3]
[330695140,1719713446566,-500.0,0.00013808,3]
[330695141,1719713446575,-500.0,0.00013808,3]
[330695142,1719713446584,-500.0,0.00013808,3]
[330695143,1719713446593,-500.0,0.00013808,3]
[330695144,1719713446602,-414.78816878,0.00013808,3]
[330695145,1719713446612,-500.0,0.00013808,3]
[330695146,1719713446621,-500.0,0.00013808,3]
[330695147,1719713446629,-500.0,0.00013808,3]
[330695148,1719713446639,-500.0,0.00013808,3]
[330695149,1719713446648,-505.30975541,0.00013808,3]
[330695150,1719713446658,-1306.33,0.00013808,3]
[330695151,1719713446666,-596.05783766,0.00013808,3]
[330695152,1719713446675,-500.0,0.00013808,3]
[330695153,1719713446684,-508.30414444,0.00013808,3]
[330695154,1719713446693,-508.46044864,0.00013808,3]
[330695155,1719713446702,-500.0,0.00013808,3]
[330695156,1719713446711,-500.0,0.00013808,3]
[330695157,1719713446720,-500.0,0.00013808,3]
[330695158,1719713446729,-500.0,0.00013808,3]
[330695159,1719713446738,-569.07,0.00013808,3]
[330695160,1719713446750,-1124.31,0.00013808,3]
[330695161,1719713446759,-1297.94,0.00013808,3]
[330695162,1719713446768,-500.0,0.00013808,3]
[330695163,1719713446777,-500.0,0.00013808,3]
[330695164,1719713446786,-500.0,0.00013808,3]
[330695165,1719713446795,-2100.78,0.00013808,3]
[330695166,1719713446806,-500.0,0.00013808,3]
[330695167,1719713446817,-1852.64,0.00013808,3]
[330695168,1719713446827,-500.0,0.00013808,3]
[330695169,1719713446837,-500.0,0.00013808,3]
[330695170,1719713446847,-500.0,0.00013808,3]
[330695171,1719713446857,-567.69,0.00013808,3]
[330695172,1719713446867,-500.0,0.00013808,3]
[330695173,1719713446876,-500.0,0.00013808,3]
[330695174,1719713446885,-500.0,0.00013808,3]
[330695175,1719713446895,-4086.02,0.00013808,3]
[330695176,1719713446905,-670.59,0.00013808,3]
[330695177,1719713446914,-500.0,0.00013808,3]
[330695179,1719713446923,-500.0,0.00013808,3]
[330695180,1719713446932,-557.46,0.00013808,3]
[330695181,1719713446942,-500.0,0.00013808,3]
[330695182,1719713446951,-611.24,0.00013808,3]
[330695183,1719713446960,-788.95,0.00013808,3]
[330695184,1719713446969,-500.0,0.00013808,3]
[330695185,1719713446978,-500.0,0.00013808,3]
[330695186,1719713446988,-705.82,0.00013808,3]
[330695187,1719713446997,-603.09,0.00013808,3]
[330695188,1719713447006,-500.0,0.00013808,3]
[330695189,1719713447015,-500.0,0.00013808,3]
[330695190,1719713447026,-500.0,0.00013808,3]
[330695191,1719713447036,-500.0,0.00013808,3]
[330695192,1719713447045,-500.0,0.00013808,3]
[330695193,1719713447054,-500.0,0.00013808,3]
[330695194,1719713447063,-500.0,0.00013808,3]
[330695195,1719713447073,-500.0,0.00013808,3]
[330695196,1719713447082,-500.0,0.00013808,3]
[330695197,1719713447091,-500.0,0.00013808,3]
[330695198,1719713447100,-500.0,0.00013808,3]
[330695199,1719713447109,-500.0,0.00013808,3]
[330695200,1719713447119,-737.68,0.00013808,3]
[330695201,1719713447128,-500.0,0.00013808,3]
[330695202,1719713447137,-668.74,0.00013808,3]
[330695203,1719713447147,-537.04,0.00013808,3]
[330695204,1719713447156,-830.72,0.00013808,3]
[330695205,1719713447166,-500.0,0.00013808,3]
[330695206,1719713447175,-2096.25,0.00013808,3]
[330695207,1719713447185,-608.68535961,0.00013808,3]
[330695208,1719713447194,-500.0,0.00013808,3]
[330695209,1719713447203,-546.64,0.00013808,3]
[330695210,1719713447212,-500.0,0.00013808,3]
[330695211,1719713447221,-1119.87,0.00013808,3]
[330695212,1719713447230,-500.0,0.00013808,3]
[330695213,1719713447239,-384.34980067,0.00013808,3]
[330695214,1719713447249,-500.0,0.00013808,3]
[330695215,1719713447260,-500.0,0.00013808,3]
[330695216,1719713447276,-500.0,0.00013808,3]
[330695217,1719713447285,-500.0,0.00013808,3]
[330695218,1719713447294,-500.0,0.00013808,3]
[330695219,1719713447303,-2459.1,0.00013808,3]
[330695220,1719713447314,-500.0,0.00013808,3]
[330695221,1719713447323,-500.0,0.00013808,3]
[330695222,1719713447332,-500.0,0.00013808,3]
[330695223,1719713447344,-731.04,0.00013808,3]
[330695224,1719713447353,-500.0,0.00013808,3]
[330695225,1719713447363,-500.0,0.00013808,3]
[330695226,1719713447372,-761.95,0.00013808,3]
[330695227,1719713447381,-649.35,0.00013808,3]
[330695228,1719713447390,-604.03,0.00013808,3]
[330695229,1719713447400,-500.0,0.00013808,3]
[330695230,1719713447410,-1804.36,0.00013808,3]
[330695231,1719713447423,-500.0,0.00013808,3]
[330695232,1719713447433,-500.0,0.00013808,3]
[330695233,1719713447442,-500.0,0.00013808,3]
[330695234,1719713447451,-700.64,0.00013808,3]
[330695235,1719713447460,-502.63,0.00013808,3]
[330695236,1719713447470,-500.0,0.00013808,3]
[330695237,1719713447479,-500.0,0.00013808,3]
[330695238,1719713447488,-500.0,0.00013808,3]
[330695239,1719713447499,-500.0,0.00013808,3]
[330695240,1719713447508,-500.0,0.00013808,3]
[330695241,1719713447517,-535.42,0.00013808,3]
[330695242,1719713447526,-571.35,0.00013808,3]
[330695243,1719713447535,-500.0,0.00013808,3]
[330695244,1719713447544,-591.20181641,0.00013808,3]
[330695245,1719713447553,-500.0,0.00013808,3]
[330695246,1719713447562,-500.0,0.00013808,3]
[330695247,1719713447571,-833.28,0.00013808,3]
[330695248,1719713447580,-500.0,0.00013808,3]
[330695249,1719713447589,-500.0,0.00013808,3]
[330695250,1719713447599,-673.9,0.00013808,3]
[330695251,1719713447609,-632.48,0.00013808,3]
[330695252,1719713447618,-500.0,0.00013808,3]
[330695253,1719713447627,-540.86,0.00013808,3]
[330695254,1719713447636,-570.54,0.00013808,3]
[330695255,1719713447647,-500.0,0.00013808,3]
[330695256,1719713447655,-523.59,0.00013808,3]
[330695257,1719713447665,-1054.08,0.00013808,3]
[330695258,1719713447674,-500.0,0.00013808,3]
[330695259,1719713447684,-500.0,0.00013808,3]
[330695260,1719713447693,-588.53,0.00013808,3]
[330695261,1719713447703,-500.0,0.00013808,3]
[330695262,1719713447714,-536.74,0.00013808,3]
[330695263,1719713447724,-500.0,0.00013808,3]
[330695264,1719713447733,-894.18,0.00013808,3]
[330695265,1719713447744,-500.0,0.00013808,3]
[330695266,1719713447754,-500.0,0.00013808,3]
[330695267,1719713447763,-500.0,0.00013808,3]
[330695268,1719713447774,-500.0,0.00013808,3]
[330695269,1719713447783,-2161.25,0.00013808,3]
[330695270,1719713447791,-500.0,0.00013808,3]
[330695271,1719713447801,-448.95459115,0.00013808,3]
[330695272,1719713447810,-500.0,0.00013808,3]
[330695273,1719713447819,-500.0,0.00013808,3]
[330695274,1719713447828,-500.0,0.00013808,3]
[330695275,1719713447839,-1264.65,0.00013808,3]
[330695276,1719713447850,-500.0,0.00013808,3]
[330695277,1719713447859,-503.53,0.00013808,3]
[330695278,1719713447870,-500.0,0.00013808,3]
[330695279,1719713447880,-500.0,0.00013808,3]
[330695280,1719713447890,-500.0,0.00013808,3]
[330695281,1719713447905,-500.0,0.00013808,3]
[330695282,1719713447914,-500.0,0.00013808,3]
[330695283,1719713447923,-1604.83,0.00013808,3]
[330695284,1719713447933,-500.0,0.00013808,3]
[330695285,1719713447942,-500.0,0.00013808,3]
[330695286,1719713447951,-898.18,0.00013808,3]
[330695287,1719713447960,-500.0,0.00013808,3]
[330695288,1719713447969,-500.0,0.00013808,3]
[330695289,1719713447978,-1260.3,0.00013808,3]
[330695290,1719713447987,-500.0,0.00013808,3]
[330695291,1719713447996,-1097.53,0.00013808,3]
[330695292,1719713448005,-500.0,0.00013808,3]
[330695293,1719713448016,-986.38,0.00013808,3]
[330695294,1719713448026,-500.0,0.00013808,3]
[330695295,1719713448037,-320.25708733,0.00013808,3]
[330695301,1719713693369,1000.0,0.0002,30]
[330695302,1719713736564,486.71,0.00010814,2]
[330695306,1719714032273,3072.15423039,0.00011098,2]
[330695309,1719714055115,10000.0,0.00025999,120]
[330695310,1719714058028,10000.0,0.00025999,120]
[330695311,1719714067322,164.12,0.00010047,2]
[330695313,1719714111647,314.07854069,0.00011098,2]
[330695314,1719714135626,4863.16160766,0.00011098,2]
[330695315,1719714183388,496.85629955,0.00011099,2]
[330695316,1719714251754,241.84937683,0.00011098,2]
[330695317,1719714259134,227.04865744,0.00011098,2]
[330695318,1719714259343,155.54915044,0.00011098,2]
[330695319,1719714320129,462.37,0.00010675,2]
[330695320,1719714402015,835.13568617,0.00011098,2]
[330695321,1719714507638,246.76740356,0.00011098,2]
[330695322,1719714624845,269.96146413,0.00011098,2]
[330695326,1719714633776,-267.73423432,0.00011197,2]
[330695327,1719714633788,-227.04865744,0.00011197,2]
[330695328,1719714633800,-250.0,0.00012514,2]
[330695329,1719714633812,-250.0,0.00012563,2]
[330695330,1719714633824,-347.50055781,0.00012602,2]
[330695331,1719714633835,-500.0,0.00012602,2]
[330695332,1719714633845,-214.15679465,0.00012602,2]
[330695333,1719714633856,-500.0,0.00012602,2]
[330695334,1719714633868,-170.23,0.00012619,2]
[330695335,1719714633879,-1000.0,0.00012636,2]
[330695336,1719714633898,-168.47,0.00012704,2]
[330695337,1719714633909,-171.17,0.0001277,2]
[330695338,1719714633922,-989.627791,0.00012857,2]
[330695339,1719714633934,-430.74,0.00012938,2]
[330695340,1719714633945,-300.0,0.00012938,2]
[330695341,1719714633956,-462.37,0.00012939,2]
[330695342,1719714633968,-2787.81308876,0.00013488,2]
[330695343,1719714633980,-1302.05030899,0.00013498,2]
[330695344,1719714633994,-1329.91706253,0.00013498,2]
[330695345,1719714634006,-14595.26747633,0.00013498,2]
[330695346,1719714634020,-1798.17271157,0.00013498,2]
[330695347,1719714634035,-361.36554768,0.00013498,2]
[330695349,1719714634275,-750.93154305,0.00013498,2]
[330695351,1719714634288,-9147.59323782,0.00013498,2]
[330695352,1719714634302,-387.99999996,0.00013498,2]
[330695353,1719714634319,-64101.27708359,0.00013498,2]
[330695354,1719714634330,-1862.58,0.00013498,2]
[330695355,1719714634341,-5391.4802,0.00013498,2]
[330695356,1719714634352,-1000.0,0.00013498,2]
[330695357,1719714634363,-2500.0,0.00013498,2]
[330695358,1719714634375,-1135.79381569,0.00013532,2]
[330695359,1719714634386,-429.71,0.00013534,2]
[330695360,1719714634398,-402.27127748,0.0001357,2]
[330695361,1719714634410,-343.33863377,0.00013598,2]
[330695362,1719714634421,-100000.0,0.00013598,2]
[330695363,1719714634433,-118757.68978012,0.00013598,2]
[330695404,1719714640101,-701.89106013,0.00013598,2]
[330695406,1719714640113,-22256.41329664,0.00013598,2]
[330695408,1719714640125,-3533.5470046,0.00013598,2]
[330695409,1719714640136,-5588.92623156,0.00013598,2]
[330695410,1719714640150,-2128.76516817,0.00013598,2]
[330695411,1719714640164,-34094.34645878,0.00013598,2]
[330695412,1719714640175,-7500.0,0.00013598,2]
[330695413,1719714640184,-980.514104,0.00013608,2]
[330695414,1719714640194,-402.27127744,0.00013659,2]
[330695415,1719714640204,-1860.58854,0.0001367,2]
[330695416,1719714640213,-1000.0,0.0001369,2]
[330695417,1719714640223,-1239.19,0.00013698,3]
[330695418,1719714640232,-797.05,0.00013698,3]
[330695419,1719714640242,-333.32425056,0.00013698,3]
[330695421,1719714640252,-2262.71,0.00013698,3]
[330695423,1719714640261,-528.14352584,0.00013698,3]
[330695425,1719714640271,-500.0,0.00013698,3]
[330695427,1719714640281,-620.08,0.00013698,3]
[330695429,1719714640291,-785.52,0.00013698,3]
[330695431,1719714640301,-1428.48,0.00013698,3]
[330695433,1719714640311,-500.0,0.00013698,3]
[330695435,1719714640321,-600.12,0.00013698,3]
[330695437,1719714640332,-1127.53,0.00013698,3]
[330695439,1719714640343,-507.27508928,0.00013698,3]
[330695441,1719714640353,-500.0,0.00013698,3]
[330695443,1719714640363,-500.0,0.00013698,3]
[330695445,1719714640374,-510.63186055,0.00013698,3]
[330695447,1719714640384,-511.56796431,0.00013698,3]
[330695449,1719714640394,-1079.5,0.00013698,3]
[330695451,1719714640406,-522.17317241,0.00013698,3]
[330695453,1719714640416,-500.0,0.00013698,3]
[330695455,1719714640430,-410.7576569,0.00013698,3]
[330695457,1719714640440,-500.0,0.00013698,3]
[330695459,1719714640450,-470.0,0.00013698,3]
[330695461,1719714640460,-500.0,0.00013698,3]
[330695463,1719714640469,-946.99,0.00013698,3]
[330695465,1719714640479,-500.0,0.00013698,3]
[330695467,1719714640489,-500.0,0.00013698,3]
[330695469,1719714640500,-500.0,0.00013698,3]
[330695471,1719714640508,-500.0,0.00013698,3]
[330695473,1719714640519,-521.26389745,0.00013698,3]
[330695475,1719714640529,-945.56,0.00013698,3]
[330695477,1719714640540,-500.0,0.00013698,3]
[330695479,1719714640550,-500.0,0.00013698,3]
[330695481,1719714640560,-500.0,0.00013698,3]
[330695483,1719714640570,-500.0,0.00013698,3]
[330695485,1719714640580,-500.0,0.00013698,3]
[330695487,1719714640590,-500.0,0.00013698,3]
[330695489,1719714640600,-507.69728002,0.00013698,3]
[330695491,1719714640609,-500.0,0.00013698,3]
[330695493,1719714640619,-500.0,0.00013698,3]
[330695495,1719714640629,-500.0,0.00013698,3]
[330695497,1719714640639,-500.0,0.00013698,3]
[330695499,1719714640650,-507.4071386,0.00013698,3]
[330695501,1719714640664,-500.0,0.00013698,3]